bitfinex-derivatives/quotes_ETHF0:USTF0_20250830
["timestamp","ask_amount","ask_price","bid_price","bid_amount"]
[1756596818419,0.2997,4375.2,4375.1,0.489]
[1756596818624,3.2078,4375.3,4375.2,0.3046]
[1756596818925,3.2078,4375.3,4375.2,0.502]
[1756596819322,3.6825,4375.3,4375.2,0.502]
[1756596819529,0.4747,4375.3,4375.2,0.502]
[1756596820830,0.4747,4375.3,4373.8,2.0219404]
[1756596820831,0.4747,4374.4,4374.3,3.4408]
[1756596821730,0.4747,4374.4,4374.3,3.2078]
[1756596821926,0.4747,4374.4,4374.3,3.4408]
[1756596822127,0.4747,4374.4,4374.3,3.7454]
[1756596822324,0.4747,4374.4,4374.3,3.9428]
[1756596824524,3.2078,4375.3,4374.4,0.3046]
[1756596824724,0.4747,4375.2,4375.1,0.502]
[1756596825831,0.4747,4375.2,4374.8,0.233]
[1756596826229,0.4747,4375.2,4374.9,0.3046]
[1756596826631,0.4747,4375.2,4375.1,0.1974]
[1756596826932,0.4747,4375.2,4375.1,0.502]
[1756596827132,1.0519269,4375.2,4375.1,0.502]
[1756596827735,0.7717269,4375.2,4374.8,0.5376]
[1756596827930,0.4747,4374.9,4374.8,0.735]
[1756596828130,0.2802,4374.9,4374.8,0.735]
[1756596828333,0.4747,4374.9,4374.8,0.735]
[1756596829539,0.2802,4374.9,4374.8,0.735]
[1756596829939,0.2802,4375.2,4374.8,0.4304]
[1756596830238,3.4023,4375.3,4375.2,0.502]
[1756596830434,3.97952669,4375.3,4374.8,0.233]
[1756596830634,0.4747,4375.1,4375.0,0.1974]
[1756596831937,0.2802,4374.3,4373.8,3.2078]
[1756596832136,0.4747,4374.4,4374.3,0.4304]
[1756596832334,0.4747,4374.4,4374.3,0.6105]
[1756596832840,0.2802,4374.4,4374.3,3.8183]
[1756596833241,0.2802,4375.2,4374.4,0.1801]
[1756596836042,0.4747,4375.2,4375.1,0.3775]
[1756596837445,0.4747,4375.2,4374.8,0.233]
[1756596838745,0.4747,4375.2,4374.8,0.4131]
[1756596838938,0.1945,4374.9,4374.8,0.4131]
[1756596839139,0.4747,4374.9,4374.8,0.6105]
[1756596842940,0.4747,4374.9,4374.8,0.233]
[1756596843348,3.2078,4375.3,4374.3,3.2078]
[1756596843548,0.1945,4374.4,4374.3,3.4408]
[1756596843744,0.4747,4374.4,4374.3,3.4408]
[1756596844748,0.4747,4374.4,4374.3,3.6382]
[1756596845049,0.4747,4374.4,4374.3,3.8183]
[1756596846047,0.4747,4374.4,4374.3,3.5853]
[1756596846250,0.2802,4374.8,4374.7,0.1974]
[1756596846449,0.2802,4374.8,4374.7,0.3775]
[1756596847253,0.1945,4374.8,4374.4,0.1804]
[1756596847554,0.5097,4374.4,4374.3,3.5837]
[1756596847841,0.5097,4374.4,4374.3,3.6363]
[1756596848449,0.5097,4374.4,4374.3,3.8167]
[1756596848652,0.3077,4375.2,4374.4,0.1804]
[1756596848950,0.53628,4375.2,4374.4,0.1804]
[1756596849145,0.5097,4374.5,4374.4,0.3759]
[1756596849447,0.5097,4374.5,4374.4,0.4285]
[1756596849847,0.5097,4374.5,4374.4,0.6089]
[1756596851754,0.5097,4374.5,4374.4,0.4285]
[1756596852453,0.5097,4374.5,4374.4,0.6089]
[1756596854458,0.5097,4374.5,4374.4,0.4285]
[1756596854857,0.5097,4374.5,4374.4,0.6089]
[1756596855755,0.5097,4374.5,4374.4,0.233]
[1756596856561,0.5097,4374.5,4374.4,0.6089]
[1756596857060,0.5097,4374.5,4374.4,0.4285]
[1756596857462,0.5097,4374.5,4374.4,0.6089]
[1756596858155,0.5097,4374.5,4374.4,0.3759]
[1756596858458,0.5097,4374.5,4374.4,0.6089]
[1756596858860,0.5097,4374.4,4374.0,0.1804]
[1756596859062,0.5097,4374.4,4374.1,0.233]
[1756596859852,0.5097,4374.4,4374.1,0.4134]
[1756596860063,0.202,4374.3,4374.2,0.3759]
[1756596860267,0.5097,4374.3,4374.1,0.233]
[1756596862867,0.5097,4374.2,4374.1,0.6082]
[1756596863164,0.3077,4374.2,4374.1,0.6082]
[1756596863354,0.5097,4374.2,4374.1,0.6082]
[1756596872372,0.3077,4374.7,4374.1,0.4285]
[1756596872574,0.5097,4374.7,4374.6,0.1955]
[1756596872772,1.08674652,4374.7,4374.6,0.3752]
[1756596873668,1.08674652,4374.7,4374.6,0.1955]
[1756596874762,1.08674652,4374.7,4374.5,0.233]
[1756596874967,0.5097,4374.7,4374.5,0.233]
[1756596877575,0.5097,4374.7,4374.6,0.3817]
[1756596877769,0.5097,4374.7,4374.6,0.2012]
[1756596877971,0.5097,4374.7,4374.5,0.233]
[1756596878175,0.202,4374.7,4374.5,0.4135]
[1756596878376,0.4925,4374.6,4374.5,0.6147]
[1756596878972,0.4925,4374.6,4374.5,0.4342]
[1756596879173,0.4925,4374.6,4374.5,0.6147]
[1756596879567,0.3023,4374.6,4374.5,0.6147]
[1756596879773,3.5101,4374.8,4374.6,0.1805]
[1756596880075,3.5101,4374.8,4374.7,0.3817]
[1756596880570,0.3023,4375.8,4374.7,0.2012]
[1756596880768,0.3023,4375.6,4374.8,0.1805]
[1756596880970,0.4925,4375.4,4375.3,0.2012]
[1756596881174,0.4925,4375.4,4375.3,0.3817]
[1756596882276,0.4925,4375.4,4375.3,0.2012]
[1756596882476,0.3023,4375.3,4375.1,0.1805]
[1756596882676,0.4925,4375.2,4375.1,0.3817]
[1756596883175,0.3023,4375.8,4375.2,0.1805]
[1756596883469,3.2078,4375.9,4375.2,0.1805]
[1756596883470,0.4925,4375.3,4375.2,0.1805]
[1756596883674,0.1902,4375.1,4375.0,0.4135]
[1756596883870,0.4925,4375.1,4375.0,0.4135]
[1756596884068,0.1902,4375.1,4374.6,0.1805]
[1756596884270,0.1902,4374.8,4374.7,0.233]
[1756596884474,0.4925,4374.8,4374.7,0.6147]
[1756596885176,0.4925,4374.8,4374.7,0.233]
[1756596891479,0.4925,4374.8,4374.7,0.6147]
[1756596899887,0.4925,4374.8,4374.7,3.8225]
[1756596900283,0.4925,4374.8,4374.7,3.642]
[1756596900483,0.4925,4374.8,4374.7,3.4408]
[1756596901985,0.4925,4374.8,4374.7,3.8225]
[1756596905786,0.4925,4374.3,4374.2,3.2078]
[1756596905985,0.4925,4374.3,4374.2,0.233]
[1756596908182,0.4925,4374.3,4373.3,0.1797]
[1756596908183,0.286,4374.2,4373.3,0.1797]
[1756596908388,0.4818,4373.4,4373.3,0.3662]
[1756596908583,0.4818,4373.4,4373.3,0.4195]
[1756596909188,0.4818,4373.4,4373.3,0.5992]
[1756596912789,0.4818,4373.4,4373.3,0.233]
[1756596912990,0.1958,4373.4,4373.3,0.233]
[1756596913191,0.4818,4373.4,4373.3,0.233]
[1756596913894,0.4818,4373.4,4373.3,0.5992]
[1756596914388,0.286,4373.4,4373.3,0.5992]
[1756596914986,0.286,4374.0,4373.9,0.1797]
[1756596915294,0.4818,4374.0,4373.9,0.233]
[1756596915493,0.4818,4374.0,4373.9,0.4195]
[1756596915686,0.4818,4374.0,4373.9,0.5992]
[1756596916588,0.4818,4374.0,4373.9,0.233]
[1756596917190,0.4818,4374.0,4373.9,0.5992]
[1756596918093,0.286,4374.0,4373.9,0.5992]
[1756596918296,0.4818,4374.0,4373.9,0.5992]
[1756596919191,0.286,4374.0,4373.9,0.5992]
[1756596920201,0.4818,4374.0,4373.9,0.5992]
[1756596920605,0.4818,4374.0,4373.9,0.233]
[1756596921303,0.1958,4373.8,4373.7,3.2078]
[1756596921603,0.4818,4373.8,4373.7,3.6273]
[1756596922002,0.4818,4373.8,4373.7,3.8077]
[1756596923205,0.4818,4373.8,4373.7,0.5999]
[1756596924296,0.4818,4373.8,4373.7,0.233]
[1756596924491,0.4818,4373.8,4373.3,0.1804]
[1756596924695,0.286,4373.7,4373.4,0.233]
[1756596924895,0.4818,4373.5,4373.4,0.5999]
[1756596927003,0.4818,4373.5,4373.4,0.3669]
[1756596927198,0.4818,4373.5,4373.4,0.5999]
[1756596927899,0.4818,4373.4,4373.3,0.3669]
[1756596928204,0.4818,4373.4,4373.3,0.5999]
[1756596930606,0.4818,4373.4,4373.3,0.4195]
[1756596931509,0.4818,4373.4,4373.3,0.233]
[1756596932207,0.4818,4373.4,4373.3,0.5999]
[1756596934010,0.4818,4373.4,4373.3,0.233]
[1756596934312,0.286,4373.3,4372.7,36.3102]
[1756596934512,0.4818,4373.3,4373.2,0.233]
[1756596941020,0.4818,4373.3,4373.2,0.6142]
[1756596943319,0.1143,4373.5,4373.2,0.6142]
[1756596943513,0.1143,4373.5,4373.4,0.3812]
[1756596945520,0.1143,4373.5,4373.4,3.589]
[1756596945719,0.1143,4373.5,4373.4,7.589]
[1756596945921,0.2953,4374.3,4374.2,0.1047]
[1756596946220,0.2953,4374.3,4374.2,0.4031]
[1756596950515,0.2953,4374.8,4374.3,0.0654]
[1756596950718,0.6131,4374.9,4374.8,0.1701]
[1756596950922,0.4989,4374.9,4374.8,0.4021]
[1756596952418,0.4989,4374.9,4374.8,0.232]
[1756596953320,0.4989,4374.8,4374.7,0.232]
[1756596970047,0.4989,4374.8,4374.0,0.0661]
[1756596970245,0.4989,4374.8,4374.1,0.232]
[1756596972653,0.4989,4374.8,4374.0,0.0661]
[1756596972849,0.191,4374.0,4373.9,0.232]
[1756596973050,0.4939,4374.0,4373.9,0.232]
[1756596973254,0.3029,4373.9,4373.8,0.232]
[1756596973448,0.4939,4373.9,4373.8,0.232]
[1756596974054,0.4939,4373.9,4373.8,0.0661]
[1756596974256,0.4939,4373.9,4373.8,0.232]
[1756596975056,0.4939,4373.9,4373.7,3.2078]
[1756596975546,0.4939,4373.8,4373.7,3.4398]
[1756596977652,0.4939,4373.8,4373.7,3.2078]
[1756596977852,0.4939,4373.8,4373.7,3.4398]
[1756596979055,0.4939,4373.8,4373.7,0.232]
[1756596986957,0.3029,4373.8,4373.7,0.4046]
[1756596987157,0.6081,4374.2,4374.1,0.1062]
[1756596987452,0.6081,4374.2,4374.1,0.4046]
[1756596987653,0.1142,4374.2,4374.1,0.4046]
[1756596995960,0.4171,4374.2,4374.1,0.4046]
[1756596996262,0.1142,4374.2,4374.1,0.4046]
[1756596997154,0.4171,4374.2,4374.1,0.4046]
[1756596999565,0.3029,4374.2,4374.1,0.4046]
[1756596999766,0.3103,4375.2,4374.2,0.0659]
[1756596999960,0.194,4374.6,4374.5,3.3133]
[1756597000265,0.5043,4374.6,4374.5,3.5453]
[1756597000665,0.5043,4374.6,4374.5,3.6112]
[1756597001867,0.1142,4374.8,4374.7,0.1714]
[1756597002068,0.1142,4374.8,4374.7,0.4034]
[1756597009471,0.4245,4374.8,4374.7,0.4034]
[1756597009671,0.1142,4374.8,4374.7,0.4034]
[1756597011165,0.4245,4374.8,4374.7,0.4034]
[1756597012165,0.1142,4374.8,4374.7,0.4034]
[1756597013271,0.4245,4374.8,4374.7,0.4034]
[1756597014164,0.194,4374.4,4374.2,32.924]
[1756597014472,0.3103,4374.3,4374.2,32.924]
[1756597014667,0.3103,4374.3,4374.2,33.156]
[1756597015467,0.3103,4374.3,4374.2,33.2219]
[1756597019066,0.3082,4374.8,4374.7,0.1055]
[1756597019274,0.3082,4374.8,4374.7,0.4034]
[1756597019674,0.6185,4374.8,4374.7,0.4034]
[1756597020071,0.194,4374.3,4374.2,32.9912]
[1756597020275,0.5043,4374.3,4374.2,33.2232]
[1756597021977,0.5043,4374.3,4374.2,33.156]
[1756597022481,0.5043,4374.3,4374.2,33.2232]
[1756597022670,0.6185,4374.8,4374.7,0.1075]
[1756597022876,0.6185,4374.8,4374.7,0.4067]
[1756597023578,0.6185,4374.8,4374.7,0.3395]
[1756597023978,0.6185,4374.8,4374.7,0.4067]
[1756597024677,0.5043,4374.8,4374.7,0.4067]
[1756597026780,0.3103,4374.8,4374.7,0.4067]
[1756597027277,0.5043,4374.8,4374.7,0.4067]
[1756597035183,0.5043,4374.8,4374.7,0.3395]
[1756597035682,0.5043,4374.8,4374.7,0.232]
[1756597036283,0.1142,4375.0,4374.2,32.924]
[1756597036284,0.194,4374.3,4374.2,32.924]
[1756597036479,0.4906,4374.3,4374.2,33.2221]
[1756597037481,0.4906,4374.3,4374.2,32.9901]
[1756597037681,0.4906,4374.3,4374.2,33.2221]
[1756597038679,0.2966,4374.3,4374.2,33.2221]
[1756597039387,0.2966,4374.9,4374.3,0.0661]
[1756597041187,0.4906,4374.9,4374.8,0.1719]
[1756597041388,0.4906,4374.9,4374.8,0.4039]
[1756597041688,0.4906,4374.9,4374.8,0.3378]
[1756597041889,0.4906,4374.9,4374.8,0.4039]
[1756597042484,0.4906,4374.9,4374.8,0.232]
[1756597043790,0.4906,4374.9,4374.8,0.2981]
[1756597044490,0.4906,4374.9,4374.8,0.232]
[1756597046291,0.2966,4374.9,4374.8,0.232]
[1756597046493,0.4906,4374.9,4374.8,0.4038]
[1756597048196,0.1142,4375.1,4374.8,0.4038]
[1756597048389,0.4108,4375.1,4375.0,0.1718]
[1756597053497,0.6048,4375.1,4374.8,0.232]
[1756597053704,0.6048,4375.1,4374.7,0.0661]
[1756597053904,0.6048,4375.1,4374.8,0.232]
[1756597054594,0.6048,4375.1,4374.8,0.2981]
[1756597066610,0.6048,4375.1,4374.8,0.232]
[1756597067409,0.6048,4375.1,4374.8,0.2978]
[1756597067807,0.6048,4375.1,4374.8,0.232]
[1756597069411,0.6048,4375.1,4374.8,0.2978]
[1756597069612,0.6048,4375.1,4374.9,0.0658]
[1756597069807,0.4906,4375.1,4374.8,0.232]
[1756597070208,0.4906,4375.1,4374.8,0.2978]
[1756597070815,0.6048,4375.1,4374.8,0.2978]
[1756597071411,0.3082,4375.1,4375.0,0.1053]
[1756597071613,0.5969,4375.1,4375.0,0.1711]
[1756597073611,0.1142,4375.1,4375.0,0.39967]
[1756597073812,0.1142,4375.1,4375.0,3.3789]
[1756597075619,0.2887,4376.9,4375.6,0.0658]
[1756597075817,0.1868,4376.1,4376.0,3.2078]
[1756597076014,0.4755,4376.1,4376.0,3.2078]
[1756597076718,0.4755,4376.1,4376.0,3.4398]
[1756597078818,0.4755,4376.1,4376.0,3.6109]
[1756597081720,0.4755,4376.1,4376.0,3.4398]
[1756597084022,0.4755,4376.1,4376.0,3.6109]
[1756597084718,0.2887,4376.9,4376.1,0.0658]
[1756597084924,0.1868,4376.4,4376.3,0.1711]
[1756597085123,0.4755,4376.4,4376.3,0.4031]
[1756597085824,0.2887,4376.4,4376.3,0.4031]
[1756597086022,0.2887,4378.0,4376.4,0.0658]
[1756597086219,0.1868,4377.2,4377.1,3.2078]
[1756597086521,0.4755,4377.2,4377.1,3.5056]
[1756597087520,0.4755,4377.2,4377.1,3.6109]
[1756597090025,0.4755,4377.2,4377.1,3.4398]
[1756597091833,0.4755,4377.2,4377.1,3.5453]
[1756597092135,0.4755,4377.2,4377.1,3.4398]
[1756597092728,0.4755,4377.2,4377.1,3.6113]
[1756597093835,0.4755,4377.2,4377.1,3.5453]
[1756597094034,0.4755,4377.2,4377.1,3.4398]
[1756597094336,0.4755,4377.2,4377.1,3.6113]
[1756597097938,0.4755,4377.2,4377.1,3.4398]
[1756597098138,0.4755,4377.2,4377.1,3.6113]
[1756597100044,0.4755,4377.2,4377.1,3.5453]
[1756597100246,0.4755,4377.2,4377.1,3.4398]
[1756597100542,0.4755,4377.2,4377.1,3.6113]
[1756597103647,0.2887,4377.2,4377.1,3.6113]
[1756597103850,0.4915,4377.2,4377.1,3.6113]
[1756597106350,0.4915,4377.2,4377.1,3.3133]
[1756597106544,0.4915,4377.2,4377.1,3.4388]
[1756597107242,0.4915,4377.2,4376.8,0.0659]
[1756597107449,0.4915,4377.2,4376.9,0.231]
[1756597108250,0.4915,4377.2,4376.9,0.2969]
[1756597108552,0.4915,4377.2,4377.0,0.231]
[1756597108747,0.4915,4377.2,4376.9,0.0659]
[1756597109349,0.4915,4377.2,4377.0,0.231]
[1756597109848,0.4915,4377.2,4376.9,0.0659]
[1756597110050,0.4915,4377.2,4377.0,0.231]
[1756597112053,0.4915,4377.2,4377.0,0.2969]
[1756597113147,0.4915,4377.2,4377.0,0.231]
[1756597113349,0.4915,4377.2,4377.1,0.0659]
[1756597113948,0.4915,4377.2,4377.1,0.2969]
[1756597114257,0.4915,4377.2,4377.1,0.231]
[1756597115256,0.4915,4377.2,4377.1,0.4024]
[1756597116357,0.4915,4377.2,4377.1,0.3365]
[1756597116553,0.4915,4377.2,4377.1,0.231]
[1756597116755,0.4915,4377.2,4376.6,3.2078]
[1756597116956,0.4915,4377.2,4377.1,0.231]
[1756597120247,0.2028,4377.2,4376.7,0.0656]
[1756597120448,0.1972,4376.9,4376.8,0.231]
[1756597120651,0.488,4376.9,4376.8,0.231]
[1756597121258,0.1972,4376.9,4376.6,3.2734]
[1756597121460,3.2078,4377.6,4376.7,0.231]
[1756597121653,0.1972,4376.8,4376.7,0.231]
[1756597121957,0.488,4376.8,4376.7,0.231]
[1756597122358,0.488,4376.8,4376.7,0.2966]
[1756597122561,0.488,4376.8,4376.7,0.4016]
[1756597124360,0.2908,4376.8,4376.7,0.4016]
[1756597125464,0.488,4376.8,4376.7,0.4016]
[1756597133566,0.488,4376.8,4376.7,0.231]
[1756597135069,0.488,4376.7,4376.6,3.2078]
[1756597135271,0.488,4376.7,4376.6,3.4388]
[1756597135570,0.488,4376.7,4376.6,3.6094]
[1756597136773,38.0,4376.7,4375.2,2.83146373]
[1756597136976,3.2078,4375.3,4374.0,2.83146373]
[1756597137274,3.2078,4374.1,4373.6,0.234]
[1756597137573,0.24380025,4374.0,4373.8,0.2821]
[1756597137774,0.24380025,4373.9,4373.8,0.4771]
[1756597138072,0.24380025,4373.9,4373.8,0.2821]
[1756597138967,0.24380025,4373.9,4373.6,0.5161]
[1756597139172,0.24380025,4373.8,4373.6,0.234]
[1756597139367,0.24380025,4373.7,4373.6,0.234]
[1756597139764,0.27323681,4373.7,4373.6,0.234]
[1756597139968,0.27323681,4373.7,4373.6,0.5161]
[1756597141077,0.27323681,4373.7,4373.6,0.2821]
[1756597142475,0.27323681,4373.7,4373.6,0.4771]
[1756597145779,3.2078,4374.1,4374.0,0.4771]
[1756597145984,3.46263965,4374.1,4374.0,0.4771]
[1756597149382,3.44119757,4374.1,4374.0,0.4771]
[1756597151479,3.44119757,4374.1,4374.0,0.2821]
[1756597151675,3.44119757,4374.1,4373.4,0.101]
[1756597151877,3.2078,4373.5,4373.4,0.605]
[1756597152180,3.44119757,4373.5,4373.4,0.605]
[1756597152776,3.44119757,4373.5,4373.4,0.504]
[1756597156387,3.2078,4373.5,4373.4,0.504]
[1756597156578,3.41527947,4373.5,4373.4,0.504]
[1756597160093,3.42424762,4373.5,4373.4,0.504]
[1756597163300,3.42424762,4373.5,4373.4,0.10947325]
[1756597163502,3.90254762,4373.5,4373.4,0.1958]
[1756597165303,3.90254762,4373.5,4373.4,0.504]
[1756597166205,4.5180043,4373.5,4373.4,0.504]
[1756597166405,4.5180043,4373.5,4373.4,0.20668058]
[1756597166795,4.30155668,4373.5,4373.3,0.234]
[1756597167101,1.09375668,4373.4,4373.3,0.234]
[1756597168403,1.09375668,4373.4,4373.3,0.5422]
[1756597168603,1.09375668,4373.4,4373.3,0.738]
[1756597169404,1.09375668,4373.4,4373.3,0.56646957]
[1756597172408,1.09375668,4373.4,4373.3,0.50215015]
[1756597172803,1.09389646,4373.4,4373.3,0.50215015]
[1756597173309,1.09389646,4373.4,4373.3,0.27916059]
[1756597175010,1.09389646,4373.4,4373.3,0.233]
[1756597177416,1.09389646,4373.4,4373.3,0.06146432]
[1756597178615,1.09389646,4373.4,4373.3,0.00448655]
[1756597179211,1.09389646,4373.4,4373.3,0.24778655]
[1756597182215,3.5066,4374.0,4373.3,4.47644655]
[1756597182420,3.2078,4374.0,4373.9,0.1497]
[1756597182621,3.2078,4374.0,4373.9,0.4763]
[1756597182816,0.2988,4374.4,4374.0,0.0936]
[1756597183022,0.80396358,4374.3,4374.2,0.1497]
[1756597183214,0.4879,4374.3,4374.2,0.2433]
[1756597188420,0.4879,4374.3,4374.2,0.1497]
[1756597188624,0.4879,4374.3,4374.0,0.0936]
[1756597188825,0.4879,4374.3,4373.9,0.233]
[1756597189828,0.4879,4374.3,4374.0,0.0936]
[1756597190130,0.4879,4374.3,4374.2,0.2433]
[1756597194441,0.4879,4374.3,4373.9,0.233]
[1756597194626,0.4879,4374.3,4374.0,0.0936]
[1756597194931,0.4879,4374.3,4373.9,0.233]
[1756597195432,0.4879,4374.3,4374.0,0.0936]
[1756597197637,0.4879,4374.3,4373.9,0.3266]
[1756597197938,0.4879,4374.3,4373.9,0.233]
[1756597198133,0.4879,4374.3,4374.0,0.0936]
[1756597200141,0.4879,4374.3,4374.2,0.2433]
[1756597200542,0.4879,4374.3,4373.9,0.233]
[1756597200734,0.4879,4374.3,4374.0,0.0936]
[1756597201341,0.4879,4374.3,4373.9,0.233]
[1756597201542,0.4879,4374.3,4374.0,0.0936]
[1756597201931,0.4879,4374.3,4373.9,0.233]
[1756597203236,0.4879,4374.3,4374.0,0.0936]
[1756597204835,0.4879,4374.3,4373.9,0.233]
[1756597205342,0.4879,4374.3,4374.0,0.0936]
[1756597205537,0.4879,4374.3,4373.9,0.233]
[1756597207736,0.4879,4374.3,4373.9,0.3262]
[1756597209242,0.4879,4374.3,4373.9,0.233]
[1756597210435,0.4879,4374.3,4374.0,0.0932]
[1756597212845,0.4879,4374.3,4373.9,0.233]
[1756597213032,0.4879,4374.3,4374.0,0.20495629]
[1756597213341,0.4879,4374.3,4373.9,0.233]
[1756597213538,0.4879,4374.3,4374.1,0.0932]
[1756597213737,0.4879,4374.3,4374.0,0.0932]
[1756597213946,0.4879,4374.3,4373.9,0.233]
[1756597214141,0.4879,4374.3,4374.1,0.0932]
[1756597214339,0.4879,4374.3,4373.9,0.233]
[1756597214539,0.4879,4374.3,4374.0,0.29817462]
[1756597214747,0.4879,4374.3,4374.0,0.0932]
[1756597221749,0.4879,4374.3,4373.9,0.3263]
[1756597224849,0.4879,4374.3,4374.0,0.0933]
[1756597226950,0.4879,4374.3,4373.9,0.233]
[1756597227151,0.2852,4375.2,4374.3,0.0933]
[1756597227451,0.2852,4375.2,4374.7,0.0933]
[1756597227751,0.2026,4374.8,4374.7,0.2426]
[1756597227944,0.4878,4374.8,4374.7,0.4746]
[1756597228950,0.2852,4374.8,4374.7,0.4746]
[1756597230851,0.4878,4374.8,4374.7,0.4746]
[1756597235449,0.4878,4374.8,4374.7,0.232]
[1756597235849,0.2852,4374.7,4374.6,36.1278]
[1756597236055,0.2852,4374.7,4374.6,36.3598]
[1756597236357,0.2852,4374.7,4374.6,33.152]
[1756597239262,0.1944,4374.2,4372.1,3.2078]
[1756597239465,3.2078,4372.9,4372.1,3.4046]
[1756597239663,3.2078,4372.9,4372.2,0.735]
[1756597239870,3.2078,4372.9,4372.3,0.3052]
[1756597240059,3.2078,4372.4,4372.3,0.3052]
[1756597242269,3.2078,4372.4,4372.3,0.502]
[1756597258976,3.2078,4372.4,4372.3,0.3052]
[1756597260477,3.2078,4372.4,4372.2,0.233]
[1756597260871,0.18706824,4372.3,4372.2,0.233]
[1756597261578,4.18706824,4372.3,4371.3,0.3052]
[1756597261782,3.2078,4371.7,4371.4,0.5382]
[1756597262279,3.2078,4371.7,4371.5,0.3052]
[1756597262978,3.2078,4371.7,4371.6,0.3052]
[1756597264278,3.39510197,4371.7,4371.6,0.3052]
[1756597265481,3.39520813,4371.7,4371.6,0.3052]
[1756597265876,3.39520813,4371.7,4371.4,0.5382]
[1756597266078,0.18740798,4371.6,4371.4,0.233]
[1756597266381,0.18754532,4371.5,4371.4,0.233]
[1756597268386,4.18754532,4371.5,4370.6,0.3069]
[1756597268586,3.2078,4370.9,4370.7,0.233]
[1756597268781,0.18754532,4370.8,4370.7,0.233]
[1756597269087,0.18754532,4370.8,4370.5,1.14402078]
[1756597269284,0.18754532,4370.7,4370.5,1.14402078]
[1756597269480,0.18754532,4370.6,4370.5,1.14402078]
[1756597269675,0.18754532,4370.6,4370.5,1.63952078]
[1756597271788,0.18754532,4370.6,4370.5,1.33262078]
[1756597272189,0.18754532,4370.8,4370.5,1.33262078]
[1756597272385,0.18754532,4370.8,4370.6,0.1886]
[1756597272586,3.2078,4370.9,4370.7,0.233]
[1756597272888,0.1878871,4370.8,4370.7,0.233]
[1756597273088,0.1878871,4370.8,4370.7,0.5399]
[1756597274081,0.1878871,4370.8,4370.7,0.7285]
[1756597283188,0.18825363,4370.8,4370.7,0.7285]
[1756597293901,3.2078,4370.9,4370.8,0.3069]
[1756597294100,3.39658653,4370.9,4370.8,0.4955]
[1756597304716,3.39706675,4370.9,4370.8,0.4955]
[1756597309118,0.18926675,4370.9,4370.8,4.72429]
[1756597309319,3.2078,4372.0,4371.9,0.4861]
[1756597309624,3.596,4372.0,4371.9,0.7181]
[1756597313826,3.2078,4372.0,4371.9,0.7181]
[1756597314027,3.3971,4372.0,4371.9,0.7181]
[1756597314827,3.596,4372.0,4371.9,0.7181]
[1756597320537,3.596,4372.0,4371.9,0.232]
[1756597320737,3.596,4372.0,4371.9,0.5225]
[1756597320931,3.596,4372.0,4371.9,0.232]
[1756597321431,3.596,4372.0,4371.9,0.5225]
[1756597322631,3.596,4372.0,4371.9,0.232]
[1756597324541,3.596,4372.0,4371.9,0.5225]
[1756597326542,3.596,4372.0,4371.9,0.7181]
[1756597326943,3.4067,4372.5,4372.4,0.1956]
[1756597327143,3.4067,4372.5,4372.4,0.7181]
[1756597327544,3.5958,4372.5,4372.4,0.7181]
[1756597330546,3.5958,4372.5,4372.4,0.232]
[1756597333852,7.6354,4372.5,4371.8,0.3065]
[1756597334053,0.394,4371.9,4371.8,0.5385]
[1756597334752,3.6018,4371.9,4371.8,0.232]
[1756597337552,0.1891,4371.8,4371.7,0.232]
[1756597337848,3.2078,4371.9,4371.7,0.232]
[1756597338053,0.2049,4371.8,4371.0,32.95]
[1756597338351,0.2049,4371.8,4371.2,0.3065]
[1756597338847,0.1891,4371.7,4371.1,0.232]
[1756597339055,0.394,4371.3,4371.2,0.73695]
[1756597339247,0.394,4371.3,4371.2,0.5082]
[1756597339552,0.394,4371.3,4371.2,0.73697]
[1756597339751,0.394,4371.3,4371.2,0.5082]
[1756597340750,0.394,4371.3,4371.2,0.7402]
[1756597342853,0.1894,4371.8,4371.3,0.3065]
[1756597343153,0.3943,4371.8,4371.7,0.2017]
[1756597343352,0.3943,4371.8,4371.7,0.7402]
[1756597343854,3.2078,4371.9,4371.8,0.3065]
[1756597344054,3.2078,4371.9,4371.8,0.5082]
[1756597347156,3.3972,4371.9,4371.8,0.5082]
[1756597349661,3.6021,4371.9,4371.8,0.5082]
[1756597352760,3.2078,4371.9,4371.8,0.5082]
[1756597355168,3.6021,4371.9,4371.8,0.5082]
[1756597362168,3.6021,4371.9,4371.7,0.232]
[1756597362364,0.1886,4371.7,4371.1,0.2874]
[1756597362570,0.3862,4371.2,4371.1,0.2874]
[1756597362772,0.3862,4371.2,4371.1,0.5194]
[1756597362972,0.3862,4371.2,4371.1,0.7159]
[1756597363569,0.3862,4371.2,4371.1,0.5194]
[1756597366677,0.3862,4371.2,4371.1,0.7159]
[1756597370178,0.1976,4371.2,4371.1,0.7159]
[1756597370677,0.1886,4371.8,4371.2,0.2874]
[1756597370877,3.2078,4371.9,4371.8,0.4839]
[1756597371076,3.3964,4371.9,4371.8,0.7159]
[1756597371275,3.594,4371.9,4371.8,0.7159]
[1756597385482,0.1976,4371.9,4371.8,0.7159]
[1756597385682,0.1886,4372.3,4371.9,0.2874]
[1756597385888,0.1886,4372.3,4372.2,0.1965]
[1756597386088,0.1886,4372.3,4372.2,0.7159]